[Event "Titled Tuesday Blitz May 03 Early 2022"]
[White "Shtyka, Sergey"]
[Black "Kozak, Antoni"]
[WhiteFideId "4138465"]
[BlackFideId "21832030"]
[WhiteElo "2014"]
[BlackElo "2236"]
[Result "0-1"]
[Round "04"]
[TimeControl "180+1"]
[Date "2022.05.03"]
[WhiteClock "0:00:05"]
[BlackClock "0:00:15"]

1. e4 {[%clk 0:02:57]}  c5 {[%clk 0:02:55]} 2. Nf3 {[%clk 0:02:56]}  d6 {[%clk 0:02:55]} 3. d4 {[%clk 0:02:57]}  cxd4 {[%clk 0:02:56]} 4. Nxd4 {[%clk 0:02:58]}  Nf6 {[%clk 0:02:56]} 5. Nc3 {[%clk 0:02:58]}  a6 {[%clk 0:02:57]} 6. Bc4 {[%clk 0:02:58]}  e6 {[%clk 0:02:55]} 7. O-O {[%clk 0:02:58]}  Be7 {[%clk 0:02:52]} 8. Be3 {[%clk 0:02:58]}  O-O {[%clk 0:02:47]} 9. f4 {[%clk 0:02:59]}  Nxe4 {[%clk 0:02:46]} 10. Nxe4 {[%clk 0:02:57]}  d5 {[%clk 0:02:47]} 11. Bd3 {[%clk 0:02:57]}  dxe4 {[%clk 0:02:47]} 12. Bxe4 {[%clk 0:02:58]}  Nd7 {[%clk 0:02:46]} 13. Bf3 {[%clk 0:02:43]}  Nf6 {[%clk 0:02:42]} 14. c4 {[%clk 0:02:33]}  Qc7 {[%clk 0:02:42]} 15. Qe2 {[%clk 0:02:29]}  Bd7 {[%clk 0:02:41]} 16. b3 {[%clk 0:02:25]}  Rad8 {[%clk 0:02:41]} 17. Rad1 {[%clk 0:02:25]}  Bc8 {[%clk 0:02:39]} 18. Qf2 {[%clk 0:02:19]}  e5 {[%clk 0:02:08]} 19. fxe5 {[%clk 0:02:13]}  Qxe5 {[%clk 0:02:09]} 20. Rfe1 {[%clk 0:01:44]}  Bc5 {[%clk 0:01:58]} 21. Nc2 {[%clk 0:01:39]}  Bxe3 {[%clk 0:01:57]} 22. Qxe3 {[%clk 0:01:38]}  Qb2 {[%clk 0:01:50]} 23. Rxd8 {[%clk 0:01:30]}  Rxd8 {[%clk 0:01:49]} 24. Nb4 {[%clk 0:01:27]}  Be6 {[%clk 0:01:15]} 25. Bxb7 {[%clk 0:01:18]}  a5 {[%clk 0:01:02]} 26. Nd5 {[%clk 0:00:59]}  Bxd5 {[%clk 0:00:54]} 27. Bxd5 {[%clk 0:00:58]}  Rf8 {[%clk 0:00:42]} 28. Qf2 {[%clk 0:00:51]}  Qa3 {[%clk 0:00:35]} 29. h3 {[%clk 0:00:48]}  h6 {[%clk 0:00:35]} 30. Rd1 {[%clk 0:00:41]}  a4 {[%clk 0:00:31]} 31. Qf3 {[%clk 0:00:39]}  Qxa2 {[%clk 0:00:29]} 32. bxa4 {[%clk 0:00:37]}  Qxa4 {[%clk 0:00:29]} 33. Rf1 {[%clk 0:00:36]}  Qb4 {[%clk 0:00:25]} 34. Qg3 {[%clk 0:00:34]}  Nxd5 {[%clk 0:00:22]} 35. cxd5 {[%clk 0:00:31]}  Qd4+ {[%clk 0:00:22]} 36. Kh1 {[%clk 0:00:29]}  Qxd5 {[%clk 0:00:23]} 37. Qf3 {[%clk 0:00:30]}  Qd8 {[%clk 0:00:21]} 38. Qf2 {[%clk 0:00:29]}  g6 {[%clk 0:00:20]} 39. Qf4 {[%clk 0:00:28]}  h5 {[%clk 0:00:20]} 40. Qh6 {[%clk 0:00:27]}  Qd4 {[%clk 0:00:19]} 41. Rf3 {[%clk 0:00:26]}  Re8 {[%clk 0:00:19]} 42. Rf1 {[%clk 0:00:26]}  Qd3 {[%clk 0:00:19]} 43. Qf4 {[%clk 0:00:25]}  Qd5 {[%clk 0:00:16]} 44. Qf2 {[%clk 0:00:25]}  Re5 {[%clk 0:00:14]} 45. Qf3 {[%clk 0:00:25]}  Qe6 {[%clk 0:00:13]} 46. Qa8+ {[%clk 0:00:24]}  Kg7 {[%clk 0:00:13]} 47. Qf3 {[%clk 0:00:25]}  Rf5 {[%clk 0:00:12]} 48. Qc3+ {[%clk 0:00:25]}  Kh7 {[%clk 0:00:10]} 49. Rxf5 {[%clk 0:00:25]}  Qxf5 {[%clk 0:00:11]} 50. Qg3 {[%clk 0:00:24]}  Qf1+ {[%clk 0:00:11]} 51. Kh2 {[%clk 0:00:24]}  Qf5 {[%clk 0:00:11]} 52. Qc7 {[%clk 0:00:24]}  Qe6 {[%clk 0:00:11]} 53. Qf4 {[%clk 0:00:23]}  Kg7 {[%clk 0:00:12]} 54. Qd4+ {[%clk 0:00:23]}  Qf6 {[%clk 0:00:12]} 55. Qe3 {[%clk 0:00:21]}  g5 {[%clk 0:00:12]} 56. Kh1 {[%clk 0:00:20]}  h4 {[%clk 0:00:12]} 57. Qe1 {[%clk 0:00:16]}  Qd4 {[%clk 0:00:11]} 58. Qf1 {[%clk 0:00:16]}  f6 {[%clk 0:00:11]} 59. Qb1 {[%clk 0:00:15]}  Kh6 {[%clk 0:00:10]} 60. Qf1 {[%clk 0:00:12]}  Kg7 {[%clk 0:00:10]} 61. Qf5 {[%clk 0:00:10]}  Qa1+ {[%clk 0:00:09]} 62. Kh2 {[%clk 0:00:09]}  Qe5+ {[%clk 0:00:10]} 63. Qxe5 {[%clk 0:00:09]}  fxe5 {[%clk 0:00:11]} 64. Kg1 {[%clk 0:00:10]}  Kf6 {[%clk 0:00:11]} 65. Kf2 {[%clk 0:00:10]}  Kf5 {[%clk 0:00:11]} 66. Kf3 {[%clk 0:00:07]}  e4+ {[%clk 0:00:11]} 67. Ke3 {[%clk 0:00:07]}  Ke5 {[%clk 0:00:12]} 68. Ke2 {[%clk 0:00:08]}  Kf4 {[%clk 0:00:12]} 69. Kf2 {[%clk 0:00:08]}  e3+ {[%clk 0:00:12]} 70. Ke2 {[%clk 0:00:08]}  Ke4 {[%clk 0:00:12]} 71. Ke1 {[%clk 0:00:06]}  Kd3 {[%clk 0:00:12]} 72. Kd1 {[%clk 0:00:07]}  e2+ {[%clk 0:00:13]} 73. Ke1 {[%clk 0:00:06]}  Ke3 {[%clk 0:00:13]} 74. g4 {[%clk 0:00:05]}  hxg3 {[%clk 0:00:14]} 75. h4 {[%clk 0:00:05]}  g2 {[%clk 0:00:15]} 0-1


[Site "https://www.chess.com"]

[Event "Titled Tuesday Blitz May 03 Early 2022"]
[White "Souleidis, Georgios"]
[Black "Jones, Gawain C B"]
[WhiteFideId "4206827"]
[BlackFideId "409561"]
[WhiteElo "2401"]
[BlackElo "2657"]
[Result "0-1"]
[Round "04"]
[TimeControl "180+1"]
[Date "2022.05.03"]
[WhiteClock "0:00:02"]
[BlackClock "0:01:05"]

1. e4 {[%clk 0:02:57]}  e5 {[%clk 0:02:59]} 2. Nf3 {[%clk 0:02:57]}  Nc6 {[%clk 0:02:59]} 3. Nc3 {[%clk 0:02:57]}  Nf6 {[%clk 0:02:57]} 4. d4 {[%clk 0:02:57]}  exd4 {[%clk 0:02:57]} 5. Nd5 {[%clk 0:02:57]}  Be7 {[%clk 0:02:47]} 6. Bc4 {[%clk 0:02:54]}  Nxe4 {[%clk 0:02:40]} 7. O-O {[%clk 0:02:50]}  Nf6 {[%clk 0:02:29]} 8. Re1 {[%clk 0:02:45]}  O-O {[%clk 0:02:24]} 9. Nxe7+ {[%clk 0:02:45]}  Nxe7 {[%clk 0:02:24]} 10. Qxd4 {[%clk 0:02:45]}  d5 {[%clk 0:02:20]} 11. Bd3 {[%clk 0:02:40]}  Bf5 {[%clk 0:02:19]} 12. Bg5 {[%clk 0:02:29]}  Nc6 {[%clk 0:01:58]} 13. Qh4 {[%clk 0:02:19]}  Bxd3 {[%clk 0:01:58]} 14. cxd3 {[%clk 0:02:20]}  h6 {[%clk 0:01:55]} 15. Bxf6 {[%clk 0:01:27]}  Qxf6 {[%clk 0:01:56]} 16. Qxf6 {[%clk 0:01:27]}  gxf6 {[%clk 0:01:57]} 17. Rac1 {[%clk 0:01:23]}  Rfe8 {[%clk 0:01:57]} 18. Kf1 {[%clk 0:01:14]}  Kf8 {[%clk 0:01:56]} 19. a3 {[%clk 0:01:13]}  Re6 {[%clk 0:01:55]} 20. Nh4 {[%clk 0:01:05]}  h5 {[%clk 0:01:51]} 21. Nf5 {[%clk 0:01:03]}  Re5 {[%clk 0:01:50]} 22. Rxe5 {[%clk 0:00:45]}  fxe5 {[%clk 0:01:51]} 23. Ng3 {[%clk 0:00:46]}  h4 {[%clk 0:01:46]} 24. Nf5 {[%clk 0:00:46]}  h3 {[%clk 0:01:46]} 25. gxh3 {[%clk 0:00:46]}  Re8 {[%clk 0:01:46]} 26. Ne3 {[%clk 0:00:42]}  Rd8 {[%clk 0:01:43]} 27. Nf5 {[%clk 0:00:35]}  Rd7 {[%clk 0:01:37]} 28. Ke2 {[%clk 0:00:34]}  Ne7 {[%clk 0:01:36]} 29. Nxe7 {[%clk 0:00:32]}  Kxe7 {[%clk 0:01:36]} 30. Ke3 {[%clk 0:00:29]}  c6 {[%clk 0:01:35]} 31. d4 {[%clk 0:00:25]}  Kf6 {[%clk 0:01:29]} 32. Rg1 {[%clk 0:00:23]}  Re7 {[%clk 0:01:28]} 33. dxe5+ {[%clk 0:00:20]}  Rxe5+ {[%clk 0:01:27]} 34. Kd3 {[%clk 0:00:19]}  Rf5 {[%clk 0:01:16]} 35. Ke3 {[%clk 0:00:19]}  Ke5 {[%clk 0:01:14]} 36. Rg8 {[%clk 0:00:18]}  d4+ {[%clk 0:01:14]} 37. Ke2 {[%clk 0:00:18]}  Kd5 {[%clk 0:01:09]} 38. Rb8 {[%clk 0:00:16]}  b5 {[%clk 0:01:09]} 39. Rb7 {[%clk 0:00:16]}  a5 {[%clk 0:01:08]} 40. h4 {[%clk 0:00:15]}  Kc4 {[%clk 0:01:07]} 41. Rc7 {[%clk 0:00:08]}  d3+ {[%clk 0:01:06]} 42. Ke3 {[%clk 0:00:07]}  Re5+ {[%clk 0:01:05]} 43. Kd2 {[%clk 0:00:04]}  Re2+ {[%clk 0:01:05]} 44. Kd1 {[%clk 0:00:05]}  c5 {[%clk 0:01:05]} 45. f3 {[%clk 0:00:03]}  Rxb2 {[%clk 0:01:05]} 46. Rxf7 {[%clk 0:00:03]}  Kc3 {[%clk 0:01:05]} 47. Rc7 {[%clk 0:00:02]}  Rb1# {[%clk 0:01:05]} 0-1


[Site "https://www.chess.com"]

[Event "Titled Tuesday Blitz May 03 Early 2022"]
[White "Srihari L R"]
[Black "Ronka, Erik"]
[WhiteFideId "46617116"]
[BlackFideId "505080"]
[WhiteElo "2121"]
[BlackElo "2264"]
[Result "1-0"]
[Round "04"]
[TimeControl "180+1"]
[Date "2022.05.03"]
[WhiteClock "0:01:26"]
[BlackClock "0:00:10"]

1. c4 {[%clk 0:02:59]}  c6 {[%clk 0:02:57]} 2. Nf3 {[%clk 0:02:54]}  d5 {[%clk 0:02:58]} 3. d4 {[%clk 0:02:55]}  Nf6 {[%clk 0:02:57]} 4. cxd5 {[%clk 0:02:53]}  cxd5 {[%clk 0:02:57]} 5. Nc3 {[%clk 0:02:53]}  Nc6 {[%clk 0:02:57]} 6. Bf4 {[%clk 0:02:51]}  Bf5 {[%clk 0:02:57]} 7. e3 {[%clk 0:02:51]}  e6 {[%clk 0:02:57]} 8. Qb3 {[%clk 0:02:49]}  Bb4 {[%clk 0:02:55]} 9. a3 {[%clk 0:02:47]}  Bxc3+ {[%clk 0:02:53]} 10. bxc3 {[%clk 0:02:48]}  Qe7 {[%clk 0:02:03]} 11. Be2 {[%clk 0:02:38]}  O-O {[%clk 0:02:02]} 12. O-O {[%clk 0:02:27]}  Ne4 {[%clk 0:01:50]} 13. Rfc1 {[%clk 0:02:23]}  g5 {[%clk 0:01:30]} 14. Bg3 {[%clk 0:02:20]}  h5 {[%clk 0:01:30]} 15. h4 {[%clk 0:02:19]}  g4 {[%clk 0:01:23]} 16. Ne1 {[%clk 0:02:16]}  Nxg3 {[%clk 0:01:14]} 17. fxg3 {[%clk 0:02:17]}  Rac8 {[%clk 0:01:09]} 18. Nd3 {[%clk 0:02:12]}  b6 {[%clk 0:01:08]} 19. Nf4 {[%clk 0:02:11]}  Na5 {[%clk 0:01:08]} 20. Qb4 {[%clk 0:02:09]}  Qc7 {[%clk 0:01:03]} 21. Nxh5 {[%clk 0:02:07]}  Nb7 {[%clk 0:00:54]} 22. c4 {[%clk 0:02:04]}  Nd6 {[%clk 0:00:48]} 23. c5 {[%clk 0:01:53]}  Ne4 {[%clk 0:00:47]} 24. Qe1 {[%clk 0:01:50]}  bxc5 {[%clk 0:00:46]} 25. dxc5 {[%clk 0:01:50]}  Qe5 {[%clk 0:00:43]} 26. c6 {[%clk 0:01:47]}  Rc7 {[%clk 0:00:27]} 27. Nf4 {[%clk 0:01:41]}  Rfc8 {[%clk 0:00:27]} 28. Ba6 {[%clk 0:01:41]}  Rd8 {[%clk 0:00:20]} 29. Rab1 {[%clk 0:01:39]}  d4 {[%clk 0:00:19]} 30. exd4 {[%clk 0:01:37]}  Qxd4+ {[%clk 0:00:20]} 31. Kh2 {[%clk 0:01:37]}  Qa4 {[%clk 0:00:16]} 32. Bb5 {[%clk 0:01:35]}  Qxa3 {[%clk 0:00:15]} 33. Rd1 {[%clk 0:01:33]}  Rb8 {[%clk 0:00:13]} 34. Bd3 {[%clk 0:01:25]}  Rxb1 {[%clk 0:00:12]} 35. Rxb1 {[%clk 0:01:26]}  Nc3 {[%clk 0:00:09]} 36. Rb8+ {[%clk 0:01:26]}  Kg7 {[%clk 0:00:10]} 37. Qe5+ {[%clk 0:01:26]} 1-0


[Site "https://www.chess.com"]

[Event "Titled Tuesday Blitz May 03 Early 2022"]
[White "Stevens, Christian"]
[Black "Gatterer, Florian"]
[WhiteFideId "2604450"]
[BlackFideId "811688"]
[WhiteElo "2497"]
[BlackElo "2218"]
[Result "1-0"]
[Round "04"]
[TimeControl "180+1"]
[Date "2022.05.03"]
[WhiteClock "0:00:03"]
[BlackClock "0:00:34"]

1. e4 {[%clk 0:03:00]}  c5 {[%clk 0:03:00]} 2. Nf3 {[%clk 0:02:59]}  d6 {[%clk 0:03:00]} 3. d4 {[%clk 0:02:58]}  cxd4 {[%clk 0:03:01]} 4. Nxd4 {[%clk 0:02:59]}  Nf6 {[%clk 0:03:01]} 5. f3 {[%clk 0:02:58]}  e5 {[%clk 0:03:00]} 6. Nb3 {[%clk 0:02:57]}  a5 {[%clk 0:02:59]} 7. a4 {[%clk 0:02:53]}  Nc6 {[%clk 0:02:52]} 8. c4 {[%clk 0:02:50]}  Be7 {[%clk 0:02:52]} 9. Be3 {[%clk 0:02:49]}  O-O {[%clk 0:02:47]} 10. Nc3 {[%clk 0:02:48]}  Be6 {[%clk 0:02:43]} 11. Be2 {[%clk 0:02:11]}  Nh5 {[%clk 0:02:40]} 12. O-O {[%clk 0:02:09]}  Nf4 {[%clk 0:02:40]} 13. Nd5 {[%clk 0:02:00]}  Bxd5 {[%clk 0:02:35]} 14. cxd5 {[%clk 0:02:01]}  Nb4 {[%clk 0:02:27]} 15. Qd2 {[%clk 0:01:39]}  Bg5 {[%clk 0:02:26]} 16. Rac1 {[%clk 0:01:35]}  h6 {[%clk 0:02:19]} 17. Kh1 {[%clk 0:01:34]}  Ng6 {[%clk 0:02:16]} 18. Bxg5 {[%clk 0:01:28]}  hxg5 {[%clk 0:02:12]} 19. Bb5 {[%clk 0:01:14]}  f6 {[%clk 0:01:47]} 20. Rc4 {[%clk 0:01:09]}  Rf7 {[%clk 0:01:42]} 21. Nxa5 {[%clk 0:00:53]}  Qxa5 {[%clk 0:01:37]} 22. Qxb4 {[%clk 0:00:49]}  Qxb4 {[%clk 0:01:37]} 23. Rxb4 {[%clk 0:00:50]}  Rc7 {[%clk 0:01:37]} 24. Bc4 {[%clk 0:00:39]}  Rac8 {[%clk 0:01:32]} 25. b3 {[%clk 0:00:36]}  Ra8 {[%clk 0:01:31]} 26. Rb6 {[%clk 0:00:28]}  Rd8 {[%clk 0:01:20]} 27. g3 {[%clk 0:00:21]}  Kf8 {[%clk 0:01:19]} 28. Ra1 {[%clk 0:00:20]}  Ke7 {[%clk 0:01:18]} 29. a5 {[%clk 0:00:20]}  Ra8 {[%clk 0:01:17]} 30. a6 {[%clk 0:00:18]}  bxa6 {[%clk 0:01:16]} 31. Rbxa6 {[%clk 0:00:19]}  Rxa6 {[%clk 0:01:15]} 32. Rxa6 {[%clk 0:00:20]}  Nf8 {[%clk 0:01:14]} 33. Kg2 {[%clk 0:00:18]}  Nd7 {[%clk 0:01:14]} 34. Rc6 {[%clk 0:00:15]}  Rb7 {[%clk 0:01:09]} 35. Kh3 {[%clk 0:00:14]}  Nc5 {[%clk 0:01:08]} 36. Kg4 {[%clk 0:00:12]}  g6 {[%clk 0:01:05]} 37. Rc8 {[%clk 0:00:10]}  Nxb3 {[%clk 0:00:59]} 38. Bxb3 {[%clk 0:00:09]}  Rxb3 {[%clk 0:00:58]} 39. Rc7+ {[%clk 0:00:09]}  Kf8 {[%clk 0:00:56]} 40. Rd7 {[%clk 0:00:09]}  Rb6 {[%clk 0:00:56]} 41. h4 {[%clk 0:00:08]}  gxh4 {[%clk 0:00:55]} 42. gxh4 {[%clk 0:00:09]}  Ke8 {[%clk 0:00:48]} 43. Rg7 {[%clk 0:00:08]}  Rb1 {[%clk 0:00:44]} 44. Rxg6 {[%clk 0:00:07]}  Kf7 {[%clk 0:00:44]} 45. Kf5 {[%clk 0:00:07]}  Rh1 {[%clk 0:00:43]} 46. Rxf6+ {[%clk 0:00:06]}  Ke7 {[%clk 0:00:43]} 47. Rh6 {[%clk 0:00:06]}  Rh3 {[%clk 0:00:40]} 48. Rh7+ {[%clk 0:00:06]}  Kd8 {[%clk 0:00:40]} 49. Ke6 {[%clk 0:00:05]}  Rxf3 {[%clk 0:00:40]} 50. Kxd6 {[%clk 0:00:06]}  Ke8 {[%clk 0:00:40]} 51. Kxe5 {[%clk 0:00:06]}  Kf8 {[%clk 0:00:39]} 52. d6 {[%clk 0:00:05]}  Rf2 {[%clk 0:00:39]} 53. Ra7 {[%clk 0:00:04]}  Rf1 {[%clk 0:00:38]} 54. Ra8+ {[%clk 0:00:03]}  Kf7 {[%clk 0:00:38]} 55. d7 {[%clk 0:00:03]}  Rd1 {[%clk 0:00:35]} 56. d8=Q {[%clk 0:00:04]}  Rd5+ {[%clk 0:00:34]} 57. Qxd5+ {[%clk 0:00:03]} 1-0


[Site "https://www.chess.com"]

[Event "Titled Tuesday Blitz May 03 Early 2022"]
[White "Suarez Uriel, Adrian"]
[Black "Melikyan, Gnel"]
[WhiteFideId "22230874"]
[BlackFideId "54109990"]
[WhiteElo "2316"]
[BlackElo "1772"]
[Result "0-1"]
[Round "04"]
[TimeControl "180+1"]
[Date "2022.05.03"]
[WhiteClock "0:02:01"]
[BlackClock "0:01:06"]

1. e4 {[%clk 0:03:00]}  c5 {[%clk 0:02:59]} 2. Ne2 {[%clk 0:03:00]}  Nc6 {[%clk 0:02:59]} 3. d4 {[%clk 0:03:00]}  cxd4 {[%clk 0:02:59]} 4. Nxd4 {[%clk 0:03:01]}  e5 {[%clk 0:02:57]} 5. Nb5 {[%clk 0:02:59]}  d6 {[%clk 0:02:57]} 6. N1c3 {[%clk 0:02:58]}  a6 {[%clk 0:02:57]} 7. Na3 {[%clk 0:02:59]}  b5 {[%clk 0:02:55]} 8. Nd5 {[%clk 0:02:59]}  Nge7 {[%clk 0:02:55]} 9. c4 {[%clk 0:02:59]}  Nxd5 {[%clk 0:02:53]} 10. exd5 {[%clk 0:02:59]}  Nd4 {[%clk 0:02:52]} 11. Be3 {[%clk 0:02:58]}  Be7 {[%clk 0:02:50]} 12. Nc2 {[%clk 0:02:57]}  Nxc2+ {[%clk 0:02:44]} 13. Qxc2 {[%clk 0:02:57]}  O-O {[%clk 0:02:43]} 14. Be2 {[%clk 0:02:47]}  Bg5 {[%clk 0:02:29]} 15. O-O {[%clk 0:02:42]}  Bxe3 {[%clk 0:02:26]} 16. fxe3 {[%clk 0:02:43]}  Qb6 {[%clk 0:02:22]} 17. Qd2 {[%clk 0:02:37]}  bxc4 {[%clk 0:02:17]} 18. Bxc4 {[%clk 0:02:37]}  Bg4 {[%clk 0:02:17]} 19. Rac1 {[%clk 0:02:36]}  Rfc8 {[%clk 0:02:12]} 20. Bb3 {[%clk 0:02:35]}  h6 {[%clk 0:02:05]} 21. Rc6 {[%clk 0:02:34]}  Rxc6 {[%clk 0:02:02]} 22. dxc6 {[%clk 0:02:34]}  Bh5 {[%clk 0:01:55]} 23. Qxd6 {[%clk 0:02:27]}  Qxe3+ {[%clk 0:01:55]} 24. Kh1 {[%clk 0:02:27]}  Qe2 {[%clk 0:01:52]} 25. Qd1 {[%clk 0:02:15]}  Qxd1 {[%clk 0:01:51]} 26. Bxd1 {[%clk 0:02:14]}  Bxd1 {[%clk 0:01:51]} 27. Rxd1 {[%clk 0:02:14]}  Rc8 {[%clk 0:01:51]} 28. Rc1 {[%clk 0:02:15]}  Kf8 {[%clk 0:01:50]} 29. b4 {[%clk 0:02:15]}  Ke7 {[%clk 0:01:50]} 30. a4 {[%clk 0:02:16]}  Kd6 {[%clk 0:01:41]} 31. b5 {[%clk 0:02:15]}  axb5 {[%clk 0:01:41]} 32. axb5 {[%clk 0:02:16]}  Kc7 {[%clk 0:01:37]} 33. Rd1 {[%clk 0:02:15]}  Kb6 {[%clk 0:01:36]} 34. Rd7 {[%clk 0:02:14]}  Kxb5 {[%clk 0:01:35]} 35. Rxf7 {[%clk 0:02:15]}  Rxc6 {[%clk 0:01:35]} 36. Kg1 {[%clk 0:02:15]}  g6 {[%clk 0:01:30]} 37. Re7 {[%clk 0:02:13]}  Rc5 {[%clk 0:01:20]} 38. Re6 {[%clk 0:02:13]}  Kc4 {[%clk 0:01:21]} 39. Rxg6 {[%clk 0:02:13]}  e4 {[%clk 0:01:18]} 40. Rxh6 {[%clk 0:02:13]}  e3 {[%clk 0:01:11]} 41. Kf1 {[%clk 0:02:12]}  Kd3 {[%clk 0:01:11]} 42. Rd6+ {[%clk 0:02:10]}  Ke4 {[%clk 0:01:11]} 43. Re6+ {[%clk 0:02:10]}  Kd3 {[%clk 0:01:11]} 44. g4 {[%clk 0:02:08]}  Rc1+ {[%clk 0:01:09]} 45. Kg2 {[%clk 0:02:08]}  e2 {[%clk 0:01:09]} 46. h4 {[%clk 0:02:03]}  e1=Q {[%clk 0:01:04]} 47. Rxe1 {[%clk 0:02:03]}  Rxe1 {[%clk 0:01:05]} 48. Kf3 {[%clk 0:02:03]}  Rf1+ {[%clk 0:01:05]} 49. Kg3 {[%clk 0:02:04]}  Ke4 {[%clk 0:01:05]} 50. h5 {[%clk 0:02:03]}  Rg1+ {[%clk 0:01:05]} 51. Kh4 {[%clk 0:02:01]}  Kf4 {[%clk 0:01:06]} 0-1


[Site "https://www.chess.com"]

[Event "Titled Tuesday Blitz May 03 Early 2022"]
[White "Sychev, Klementy"]
[Black "Vlassov, Nikolai"]
[WhiteFideId "4114060"]
[BlackFideId "4103360"]
[WhiteElo "2564"]
[BlackElo "2407"]
[Result "1-0"]
[Round "04"]
[TimeControl "180+1"]
[Date "2022.05.03"]
[WhiteClock "0:00:34"]
[BlackClock "0:00:22"]

1. e4 {[%clk 0:03:00]}  Nc6 {[%clk 0:02:59]} 2. Nf3 {[%clk 0:03:00]}  d5 {[%clk 0:02:59]} 3. exd5 {[%clk 0:03:00]}  Qxd5 {[%clk 0:03:00]} 4. Nc3 {[%clk 0:03:00]}  Qa5 {[%clk 0:03:01]} 5. Bb5 {[%clk 0:02:57]}  Bd7 {[%clk 0:03:01]} 6. O-O {[%clk 0:02:54]}  a6 {[%clk 0:03:02]} 7. Bxc6 {[%clk 0:02:51]}  Bxc6 {[%clk 0:03:02]} 8. d4 {[%clk 0:02:47]}  e6 {[%clk 0:03:03]} 9. Re1 {[%clk 0:02:43]}  Nf6 {[%clk 0:02:48]} 10. Ne5 {[%clk 0:02:25]}  Bd6 {[%clk 0:02:47]} 11. Nxc6 {[%clk 0:02:17]}  bxc6 {[%clk 0:02:48]} 12. Qf3 {[%clk 0:02:16]}  Kd7 {[%clk 0:02:39]} 13. Bd2 {[%clk 0:02:12]}  Qh5 {[%clk 0:02:38]} 14. Qxh5 {[%clk 0:02:08]}  Nxh5 {[%clk 0:02:38]} 15. Ne4 {[%clk 0:02:08]}  Nf6 {[%clk 0:02:36]} 16. Ng5 {[%clk 0:02:07]}  Ke7 {[%clk 0:02:22]} 17. c4 {[%clk 0:02:06]}  c5 {[%clk 0:02:23]} 18. b4 {[%clk 0:02:00]}  cxb4 {[%clk 0:01:48]} 19. c5 {[%clk 0:01:58]}  Nd5 {[%clk 0:01:44]} 20. cxd6+ {[%clk 0:01:54]}  cxd6 {[%clk 0:01:45]} 21. Rab1 {[%clk 0:01:51]}  a5 {[%clk 0:01:45]} 22. Rec1 {[%clk 0:01:46]}  Rhc8 {[%clk 0:01:43]} 23. Kf1 {[%clk 0:01:45]}  Rxc1+ {[%clk 0:01:33]} 24. Rxc1 {[%clk 0:01:44]}  a4 {[%clk 0:01:34]} 25. Ne4 {[%clk 0:01:41]}  b3 {[%clk 0:01:30]} 26. axb3 {[%clk 0:01:40]}  axb3 {[%clk 0:01:30]} 27. Rb1 {[%clk 0:01:41]}  Rb8 {[%clk 0:01:30]} 28. Ke2 {[%clk 0:01:39]}  f5 {[%clk 0:01:30]} 29. Nc3 {[%clk 0:01:35]}  Nf6 {[%clk 0:01:26]} 30. Bg5 {[%clk 0:01:28]}  h6 {[%clk 0:01:23]} 31. Bxf6+ {[%clk 0:01:28]}  Kxf6 {[%clk 0:01:24]} 32. Kd3 {[%clk 0:01:28]}  e5 {[%clk 0:01:24]} 33. Rb2 {[%clk 0:01:25]}  Ke6 {[%clk 0:01:17]} 34. d5+ {[%clk 0:01:22]}  Kf6 {[%clk 0:01:17]} 35. Kc4 {[%clk 0:01:22]}  e4 {[%clk 0:01:13]} 36. Rxb3 {[%clk 0:01:19]}  Rxb3 {[%clk 0:01:11]} 37. Kxb3 {[%clk 0:01:19]}  Ke5 {[%clk 0:01:11]} 38. Kc4 {[%clk 0:01:18]}  f4 {[%clk 0:01:12]} 39. f3 {[%clk 0:01:16]}  exf3 {[%clk 0:01:08]} 40. gxf3 {[%clk 0:01:12]}  g5 {[%clk 0:01:09]} 41. h3 {[%clk 0:01:10]}  h5 {[%clk 0:01:09]} 42. Nd1 {[%clk 0:01:08]}  g4 {[%clk 0:00:51]} 43. hxg4 {[%clk 0:00:56]}  hxg4 {[%clk 0:00:49]} 44. fxg4 {[%clk 0:00:56]}  Ke4 {[%clk 0:00:39]} 45. Nf2+ {[%clk 0:00:49]}  Kf3 {[%clk 0:00:37]} 46. g5 {[%clk 0:00:49]}  Kxf2 {[%clk 0:00:37]} 47. g6 {[%clk 0:00:50]}  f3 {[%clk 0:00:38]} 48. g7 {[%clk 0:00:50]}  Ke2 {[%clk 0:00:33]} 49. g8=Q {[%clk 0:00:49]}  f2 {[%clk 0:00:34]} 50. Qe6+ {[%clk 0:00:48]}  Kd2 {[%clk 0:00:34]} 51. Qf5 {[%clk 0:00:44]}  Ke1 {[%clk 0:00:33]} 52. Qe4+ {[%clk 0:00:43]}  Kf1 {[%clk 0:00:22]} 53. Kd3 {[%clk 0:00:36]}  Kg1 {[%clk 0:00:22]} 54. Qg4+ {[%clk 0:00:36]}  Kh2 {[%clk 0:00:22]} 55. Ke2 {[%clk 0:00:34]} 1-0


[Site "https://www.chess.com"]